fUST/lending_fUST_20250226
["ID","MTS","AMOUNT","RATE_DAILY","PERIOD"]
[354532698,1740558709969,-500.0,0.00040821,2]
[354532699,1740558709979,-500.0,0.00040821,2]
[354532700,1740558709988,-500.0,0.00040821,2]
[354532701,1740558710000,-500.0,0.00040821,2]
[354532702,1740558710010,-500.0,0.00040821,2]
[354532703,1740558710021,-500.0,0.00040821,2]
[354532704,1740558710031,-500.0,0.00040821,2]
[354532705,1740558710040,-667.32,0.00040821,2]
[354532706,1740558710050,-616.8,0.00040821,2]
[354532707,1740558710059,-543.46851028,0.00040821,2]
[354532708,1740558710068,-661.5,0.00040821,2]
[354532709,1740558710078,-500.0,0.00040821,2]
[354532710,1740558710087,-510.79,0.00040821,2]
[354532711,1740558710097,-500.0,0.00040821,2]
[354532712,1740558710106,-802.93,0.00040821,2]
[354532713,1740558710116,-500.0,0.00040821,2]
[354532714,1740558710125,-500.0,0.00040821,2]
[354532715,1740558710134,-500.0,0.00040821,2]
[354532716,1740558710144,-500.0,0.00040821,2]
[354532717,1740558710154,-500.0,0.00040821,2]
[354532718,1740558710163,-569.52,0.00040821,2]
[354532719,1740558710173,-500.0,0.00040821,2]
[354532720,1740558710183,-500.0,0.00040821,2]
[354532721,1740558710192,-503.04,0.00040821,2]
[354532722,1740558710203,-500.0,0.00040821,2]
[354532723,1740558710212,-500.0,0.00040821,2]
[354532724,1740558710221,-723.89,0.00040821,2]
[354532725,1740558710231,-500.38,0.00040821,2]
[354532726,1740558710240,-500.0,0.00040821,2]
[354532727,1740558710250,-500.0,0.00040821,2]
[354532728,1740558710259,-501.5,0.00040821,2]
[354532729,1740558710268,-512.87,0.00040821,2]
[354532730,1740558710277,-500.0,0.00040821,2]
[354532731,1740558710290,-614.65,0.00040821,2]
[354532732,1740558710300,-500.0,0.00040821,2]
[354532733,1740558710310,-500.0,0.00040821,2]
[354532734,1740558710320,-624.83,0.00040821,2]
[354532735,1740558710330,-589.02,0.00040821,2]
[354532736,1740558710340,-889.66,0.00040821,2]
[354532737,1740558710349,-500.0,0.00040821,2]
[354532738,1740558710359,-500.0,0.00040821,2]
[354532739,1740558710371,-1136.23,0.00040821,2]
[354532740,1740558710381,-1804.81,0.00040821,2]
[354532741,1740558710391,-1934.61,0.00040821,2]
[354532742,1740558710400,-647.46038851,0.00040821,2]
[354532743,1740558710409,-1190.11,0.00040821,2]
[354532744,1740558710419,-791.41,0.00040821,2]
[354532745,1740558710429,-2633.89,0.00040821,2]
[354532746,1740558710439,-500.0,0.00040821,2]
[354532747,1740558710449,-535.35,0.00040821,2]
[354532748,1740558710458,-1419.4,0.00040821,2]
[354532749,1740558710468,-770.85,0.00040821,2]
[354532750,1740558710479,-1556.33,0.00040821,2]
[354532751,1740558710488,-1936.09,0.00040821,2]
[354532752,1740558710498,-700.46,0.00040821,2]
[354532753,1740558710507,-1160.21,0.00040821,2]
[354532754,1740558710516,-911.0,0.00040821,2]
[354532755,1740558710525,-728.98,0.00040821,2]
[354532756,1740558710535,-1160.43,0.00040821,2]
[354532757,1740558710544,-500.0,0.00040821,2]
[354532758,1740558710553,-2716.92,0.00040821,2]
[354532759,1740558710563,-1164.04,0.00040821,2]
[354532760,1740558710572,-962.5,0.00040821,2]
[354532761,1740558710581,-583.33,0.00040821,2]
[354532762,1740558710590,-679.73,0.00040821,2]
[354532763,1740558710600,-583.33,0.00040821,2]
[354532764,1740558710609,-626.63,0.00040821,2]
[354532765,1740558710619,-5271.87,0.00040821,2]
[354532766,1740558710629,-518.21,0.00040821,2]
[354532767,1740558710639,-2041.52,0.00040821,2]
[354532768,1740558710648,-837.37,0.0004087,2]
[354532769,1740558710658,-500.0,0.0004087,2]
[354532770,1740558710667,-411.70157176,0.0004087,2]
[354532771,1740558710677,-1223.33,0.0004087,2]
[354532772,1740558710687,-500.0,0.0004087,2]
[354532773,1740558710697,-746.59,0.0004087,2]
[354532774,1740558710706,-996.86,0.0004087,2]
[354532775,1740558710715,-649.16,0.0004087,2]
[354532776,1740558710724,-500.0,0.0004087,2]
[354532777,1740558710733,-809.19,0.0004087,2]
[354532778,1740558710743,-500.0,0.0004087,2]
[354532779,1740558710752,-500.0,0.0004087,2]
[354532780,1740558710762,-311.72482934,0.0004087,2]
[354532781,1740558710771,-807.31,0.0004087,2]
[354532782,1740558710780,-551.31,0.0004087,2]
[354532783,1740558710790,-500.0,0.0004087,2]
[354532784,1740558710799,-500.0,0.0004087,2]
[354532785,1740558710808,-1093.48,0.0004087,2]
[354532786,1740558710817,-923.19,0.0004087,2]
[354532787,1740558710827,-937.3,0.0004087,2]
[354532788,1740558710836,-500.0,0.0004087,2]
[354532789,1740558710845,-731.22,0.0004087,2]
[354532790,1740558710854,-836.16,0.0004087,2]
[354532791,1740558710863,-1435.65,0.0004087,2]
[354532792,1740558710873,-1482.81,0.0004087,2]
[354532793,1740558710883,-745.96,0.0004087,2]
[354532794,1740558710892,-1248.13,0.0004087,2]
[354532795,1740558710901,-631.6,0.0004087,2]
[354532796,1740558710910,-691.31,0.0004087,2]
[354532797,1740558710920,-1944.22,0.0004087,2]
[354532798,1740558710929,-181.0030774,0.0004087,2]
[354532799,1740558710938,-934.6,0.0004087,2]
[354532800,1740558710948,-729.0,0.0004087,2]
[354532801,1740558710957,-936.38,0.0004087,2]
[354532802,1740558710966,-683.43,0.0004087,2]
[354532803,1740558710976,-844.03,0.0004087,2]
[354532804,1740558710985,-571.6,0.0004087,2]
[354532805,1740558710995,-876.55,0.0004087,2]
[354532806,1740558711005,-519.21,0.0004087,2]
[354532807,1740558711014,-500.0,0.0004087,2]
[354532808,1740558711025,-884.18,0.0004087,2]
[354532809,1740558711034,-763.01,0.0004087,2]
[354532810,1740558711044,-635.38,0.0004087,2]
[354532811,1740558711053,-500.0,0.0004087,2]
[354532812,1740558711062,-500.0,0.0004087,2]
[354532813,1740558711072,-500.0,0.0004087,2]
[354532814,1740558711081,-5538.76,0.0004087,2]
[354532815,1740558711090,-784.71,0.0004087,2]
[354532816,1740558711100,-751.07,0.0004087,2]
[354532817,1740558711109,-511.78,0.0004087,2]
[354532818,1740558711119,-642.18,0.0004087,2]
[354532819,1740558711128,-500.0,0.0004087,2]
[354532820,1740558711137,-674.65,0.0004087,2]
[354532821,1740558711147,-726.46,0.0004087,2]
[354532822,1740558711159,-745.5,0.0004087,2]
[354532823,1740558711168,-500.0,0.0004087,2]
[354532824,1740558711179,-503.2,0.0004087,2]
[354532825,1740558711188,-500.0,0.0004087,2]
[354532826,1740558711197,-300000.0,0.00041,2]
[354532827,1740558711207,-405.117872,0.00041,120]
[354532828,1740558711217,-500.0,0.00041085,2]
[354532829,1740558711226,-500.0,0.00041085,2]
[354532830,1740558711235,-500.0,0.00041085,2]
[354532831,1740558711245,-785.72,0.00041085,2]
[354532832,1740558711254,-500.0,0.00041085,2]
[354532833,1740558711263,-500.0,0.00041085,2]
[354532834,1740558711275,-500.0,0.00041085,2]
[354532835,1740558711285,-500.0,0.00041085,2]
[354532836,1740558711297,-500.0,0.00041085,2]
[354532837,1740558711307,-500.0,0.00041085,2]
[354532838,1740558711316,-500.0,0.00041085,2]
[354532839,1740558711325,-500.0,0.00041085,2]
[354532840,1740558711336,-930.16,0.00041085,2]
[354532841,1740558711345,-500.0,0.00041085,2]
[354532842,1740558711354,-639.3,0.00041085,2]
[354532843,1740558711365,-641.45,0.00041085,2]
[354532844,1740558711374,-500.0,0.00041085,2]
[354532845,1740558711383,-500.0,0.00041085,2]
[354532846,1740558711392,-500.0,0.00041085,2]
[354532847,1740558711402,-626.59,0.00041085,2]
[354532848,1740558711411,-500.0,0.00041085,2]
[354532849,1740558711420,-500.0,0.00041085,2]
[354532850,1740558711428,-500.0,0.00041085,2]
[354532851,1740558711438,-500.0,0.00041085,2]
[354532852,1740558711447,-500.0,0.00041085,2]
[354532853,1740558711457,-500.0,0.00041085,2]
[354532854,1740558711466,-500.0,0.00041085,2]
[354532855,1740558711475,-500.0,0.00041085,2]
[354532856,1740558711485,-500.0,0.00041085,2]
[354532857,1740558711494,-656.28,0.00041085,2]
[354532858,1740558711504,-500.0,0.00041085,2]
[354532859,1740558711514,-500.0,0.00041085,2]
[354532860,1740558711523,-500.0,0.00041085,2]
[354532861,1740558711532,-398.4822507,0.00041085,2]
[354532862,1740558711542,-500.0,0.00041085,2]
[354532863,1740558711551,-689.21,0.00041085,2]
[354532864,1740558711560,-785.33,0.00041085,2]
[354532865,1740558711570,-500.0,0.00041085,2]
[354532866,1740558711579,-527.38067974,0.00041085,2]
[354532867,1740558711588,-500.0,0.00041085,2]
[354532868,1740558711597,-243.23707748,0.00041085,2]
[354532869,1740558711607,-500.0,0.00041085,2]
[354532870,1740558711616,-734.51,0.00041085,2]
[354532871,1740558711625,-524.41,0.00041085,2]
[354532872,1740558711635,-926.84,0.00041085,2]
[354532873,1740558711645,-500.0,0.00041085,2]
[354532874,1740558711654,-7891.32,0.00041085,2]
[354532875,1740558711664,-500.0,0.00041085,2]
[354532876,1740558711673,-4684.26,0.00041085,2]
[354532877,1740558711683,-871.57,0.00041085,2]
[354532878,1740558711692,-500.0,0.00041085,2]
[354532879,1740558711702,-978.51,0.00041085,2]
[354532880,1740558711711,-500.0,0.00041085,2]
[354532881,1740558711721,-500.0,0.00041085,2]
[354532882,1740558711731,-636.88,0.00041085,2]
[354532883,1740558711741,-500.0,0.00041085,2]
[354532884,1740558711750,-680.1,0.00041085,2]
[354532885,1740558711760,-500.0,0.00041085,2]
[354532886,1740558711769,-500.0,0.00041085,2]
[354532887,1740558711778,-775.53,0.00041085,2]
[354532888,1740558711787,-500.0,0.00041085,2]
[354532889,1740558711796,-500.0,0.00041085,2]
[354532890,1740558711805,-604.16,0.00041085,2]
[354532891,1740558711815,-500.0,0.00041085,2]
[354532892,1740558711824,-542.14,0.00041085,2]
[354532893,1740558711834,-500.0,0.00041085,2]
[354532894,1740558711846,-500.0,0.00041094,2]
[354532895,1740558711855,-500.0,0.00041094,2]
[354532896,1740558711864,-500.0,0.00041094,2]
[354532897,1740558711873,-554.44,0.00041094,2]
[354532898,1740558711883,-717.11,0.00041094,2]
[354532899,1740558711891,-500.0,0.00041094,2]
[354532900,1740558711901,-581.11528267,0.00041094,2]
[354532901,1740558711910,-500.0,0.00041094,2]
[354532902,1740558711919,-500.0,0.00041094,2]
[354532903,1740558711929,-300.0,0.00041094,120]
[354532904,1740558711938,-500.0,0.00041094,2]
[354532905,1740558711948,-500.0,0.00041094,2]
[354532906,1740558711957,-639.26,0.00041094,2]
[354532907,1740558711967,-500.0,0.00041094,2]
[354532908,1740558711976,-500.0,0.00041094,2]
[354532909,1740558711985,-500.0,0.00041094,2]
[354532910,1740558711994,-500.0,0.00041094,2]
[354532911,1740558712003,-500.0,0.00041094,2]
[354532912,1740558712012,-517.92791759,0.00041094,2]
[354532913,1740558712021,-586.05,0.00041094,2]
[354532914,1740558712030,-500.0,0.00041094,2]
[354532915,1740558712039,-500.0,0.00041094,2]
[354532916,1740558712049,-500.0,0.00041094,2]
[354532917,1740558712058,-561.33,0.00041094,2]
[354532918,1740558712067,-175.92847754,0.00041094,2]
[354532919,1740558712077,-500.0,0.00041094,2]
[354532920,1740558712087,-565.23,0.00041094,2]
[354532921,1740558712096,-581.98382923,0.00041094,2]
[354532922,1740558712105,-531.61726839,0.00041094,2]
[354532923,1740558712115,-500.0,0.00041094,2]
[354532924,1740558712124,-528.37,0.00041094,2]
[354532925,1740558712134,-613.55,0.00041094,2]
[354532926,1740558712143,-648.85,0.00041094,2]
[354532927,1740558712153,-500.0,0.00041094,2]
[354532928,1740558712163,-500.0,0.00041094,2]
[354532929,1740558712172,-500.0,0.00041094,2]
[354532930,1740558712182,-500.0,0.00041094,2]
[354532931,1740558712192,-569.12,0.00041094,2]
[354532932,1740558712201,-500.0,0.00041094,2]
[354532933,1740558712210,-500.0,0.00041094,2]
[354532934,1740558712219,-819.68,0.00041094,2]
[354532935,1740558712229,-500.0,0.00041094,2]
[354532936,1740558712238,-500.0,0.00041094,2]
[354532937,1740558712247,-690.47,0.00041094,2]
[354532938,1740558712256,-564.17,0.00041094,2]
[354532939,1740558712266,-681.33,0.00041094,2]
[354532940,1740558712275,-1375.0,0.00041095,2]
[354532941,1740558712285,-500.0,0.00041095,2]
[354532942,1740558712298,-500.0,0.00041095,2]
[354532943,1740558712307,-340.45424598,0.00041095,2]
[354532944,1740558712316,-500.0,0.00041095,2]
[354532945,1740558712325,-500.0,0.00041095,2]
[354532946,1740558712336,-787.39,0.00041095,2]
[354532947,1740558712345,-500.0,0.00041095,2]
[354532948,1740558712354,-394.97707305,0.00041095,2]
[354532949,1740558712364,-500.0,0.00041095,2]
[354532950,1740558712374,-683.71,0.00041095,2]
[354532951,1740558712383,-500.0,0.00041095,2]
[354532952,1740558712393,-500.0,0.00041095,2]
[354532953,1740558712403,-569.11,0.00041095,2]
[354532954,1740558712412,-638.36536009,0.00041095,2]
[354532955,1740558712421,-341.42170906,0.00041095,2]
[354532956,1740558712431,-500.0,0.00041095,2]
[354532957,1740558712440,-500.0,0.00041095,2]
[354532958,1740558712449,-500.0,0.00041095,2]
[354532959,1740558712459,-500.0,0.00041095,2]
[354532960,1740558712468,-500.0,0.00041095,2]
[354532961,1740558712478,-500.0,0.00041095,2]
[354532962,1740558712487,-500.0,0.00041095,2]
[354532963,1740558712496,-512.7,0.00041095,2]
[354532964,1740558712505,-500.0,0.00041095,2]
[354532965,1740558712515,-500.0,0.00041095,2]
[354532966,1740558712524,-562.39,0.00041095,2]
[354532967,1740558712534,-578.94,0.00041095,2]
[354532968,1740558712543,-859.52,0.00041095,2]
[354532969,1740558712552,-500.0,0.00041095,2]
[354532970,1740558712562,-703.42,0.00041095,2]
[354532971,1740558712571,-500.0,0.00041095,2]
[354532972,1740558712581,-500.0,0.00041095,2]
[354532973,1740558712590,-500.0,0.00041095,2]
[354532974,1740558712599,-500.0,0.00041095,2]
[354532975,1740558712609,-500.0,0.00041095,2]
[354532976,1740558712618,-500.0,0.00041095,2]
[354532977,1740558712627,-500.0,0.00041095,2]
[354532978,1740558712636,-667.32,0.00041095,2]
[354532979,1740558712645,-616.8,0.00041095,2]
[354532980,1740558712655,-661.5,0.00041095,2]
[354532981,1740558712664,-500.0,0.00041095,2]
[354532982,1740558712673,-510.79,0.00041095,2]
[354532983,1740558712683,-500.0,0.00041095,2]
[354532984,1740558712692,-802.93,0.00041095,2]
[354532985,1740558712701,-500.0,0.00041095,2]
[354532986,1740558712710,-500.0,0.00041095,2]
[354532987,1740558712719,-500.0,0.00041095,2]
[354532988,1740558712728,-500.0,0.00041095,2]
[354532989,1740558712737,-500.0,0.00041095,2]
[354532990,1740558712747,-569.52,0.00041095,2]
[354532991,1740558712756,-500.0,0.00041095,2]
[354532992,1740558712765,-500.0,0.00041095,2]
[354532993,1740558712775,-500.0,0.00041095,60]
[354532994,1740558712945,-500.0,0.00041095,60]
[354532995,1740558712955,-500.0,0.00041095,60]
[354532996,1740558712965,-500.0,0.00041095,60]
[354532997,1740558712974,-500.0,0.00041095,60]
[354532998,1740558712984,-500.0,0.00041095,60]
[354532999,1740558712993,-503.04,0.00041095,2]
[354533000,1740558713003,-500.0,0.00041095,60]
[354533001,1740558713012,-500.0,0.00041095,60]
[354533002,1740558713021,-500.0,0.00041095,60]
[354533003,1740558713031,-500.0,0.00041095,60]
[354533004,1740558713040,-500.0,0.00041095,60]
[354533005,1740558713050,-500.0,0.00041095,2]
[354533006,1740558713059,-500.0,0.00041095,2]
[354533007,1740558713068,-723.89,0.00041095,2]
[354533008,1740558713078,-500.38,0.00041095,2]
[354533009,1740558713087,-500.0,0.00041095,2]
[354533010,1740558713097,-333.56940705,0.00041095,2]
[354533011,1740558713106,-501.5,0.00041095,2]
[354533012,1740558713115,-512.87,0.00041095,2]
[354533013,1740558713125,-500.0,0.00041095,2]
[354533014,1740558713135,-614.65,0.00041095,2]
[354533015,1740558713148,-500.0,0.00041095,2]
[354533016,1740558713159,-1094.65,0.00041095,120]
[354533017,1740558713169,-1094.65,0.00041095,120]
[354533018,1740558713179,-1094.65,0.00041095,120]
[354533019,1740558713188,-1094.65,0.00041095,120]
[354533020,1740558713199,-1094.65,0.00041095,120]
[354533021,1740558713211,-1094.65,0.00041095,120]
[354533022,1740558713222,-1094.65,0.00041095,120]
[354533023,1740558713231,-1094.65,0.00041095,120]
[354533024,1740558713242,-1094.65,0.00041095,120]
[354533025,1740558713252,-1094.65,0.00041095,120]
[354533026,1740558713263,-1094.65,0.00041095,120]
[354533027,1740558713273,-1094.65,0.00041095,120]
[354533028,1740558713284,-1094.65,0.00041095,120]
[354533029,1740558713295,-1094.65,0.00041095,120]
[354533030,1740558713305,-1094.65,0.00041095,120]
[354533031,1740558713315,-1094.65,0.00041095,120]
[354533032,1740558713324,-1094.65,0.00041095,120]
[354533033,1740558713335,-1094.65,0.00041095,120]
[354533034,1740558713345,-1094.65,0.00041095,120]
[354533035,1740558713355,-1094.65,0.00041095,120]
[354533036,1740558713365,-1094.65,0.00041095,120]
[354533037,1740558713375,-1094.65,0.00041095,120]
[354533038,1740558713385,-1094.65,0.00041095,120]
[354533039,1740558713395,-1094.82400111,0.00041095,120]
[354533040,1740558713404,-500.0,0.00041095,2]
[354533041,1740558713414,-624.83,0.00041095,2]
[354533042,1740558713424,-589.02,0.00041095,2]
[354533043,1740558713434,-889.66,0.00041095,2]
[354533044,1740558713446,-500.0,0.00041095,2]
[354533045,1740558713457,-517.829272,0.00041095,2]
[354533046,1740558713468,-1136.23,0.00041095,2]
[354533047,1740558713478,-1804.81,0.00041095,2]
[354533048,1740558713488,-1934.61,0.00041095,2]
[354533049,1740558713497,-1190.11,0.00041095,2]
[354533050,1740558713507,-791.41,0.00041095,2]
[354533051,1740558713517,-2633.89,0.00041095,2]
[354533052,1740558713527,-553.96998672,0.00041095,2]
[354533053,1740558713537,-3430.51,0.00041095,120]
[354533054,1740558713547,-535.35,0.00041095,2]
[354533055,1740558713558,-1419.4,0.00041095,2]
[354533056,1740558713569,-770.85,0.00041095,2]
[354533057,1740558713579,-1556.33,0.00041095,2]
[354533058,1740558713589,-1936.09,0.00041095,2]
[354533059,1740558713599,-700.46,0.00041095,2]
[354533060,1740558713609,-1160.21,0.00041095,2]
[354533061,1740558713619,-911.0,0.00041095,2]
[354533062,1740558713628,-728.98,0.00041095,2]
[354533063,1740558713637,-1160.43,0.00041095,2]
[354533064,1740558713646,-500.0,0.00041095,2]
[354533065,1740558713656,-500.0,0.00041095,120]
[354533066,1740558713666,-500.0,0.00041095,120]
[354533067,1740558713675,-500.0,0.00041095,120]
[354533068,1740558713684,-500.0,0.00041095,120]
[354533069,1740558713694,-500.0,0.00041095,120]
[354533070,1740558713703,-500.0,0.00041095,120]
[354533071,1740558713713,-500.0,0.00041095,120]
[354533072,1740558713722,-618.12873025,0.00041095,120]
[354533073,1740558713732,-2716.92,0.00041095,2]
[354533074,1740558713741,-1164.04,0.00041095,2]
[354533075,1740558713751,-1000.0,0.00041095,120]
[354533076,1740558713760,-962.5,0.00041095,2]
[354533077,1740558713771,-583.33,0.00041095,2]
[354533078,1740558713780,-679.73,0.00041095,2]
[354533079,1740558713790,-583.33,0.00041095,2]
[354533080,1740558713799,-626.63,0.00041095,2]
[354533081,1740558713808,-5271.87,0.00041095,2]
[354533082,1740558713818,-518.21,0.00041095,2]
[354533083,1740558713828,-2041.52,0.00041095,2]
[354533084,1740558713837,-151.0,0.00041096,2]
[354533085,1740558713846,-500.0,0.00041096,10]
[354533086,1740558713856,-1183.224508,0.00041096,14]
[354533087,1740558713865,-1183.224508,0.00041096,14]
[354533088,1740558713875,-1183.224508,0.00041096,14]
[354533089,1740558713884,-1183.224508,0.00041096,14]
[354533090,1740558713894,-1183.224508,0.00041096,14]
[354533091,1740558713903,-1183.224508,0.00041096,14]
[354533092,1740558713913,-1183.224508,0.00041096,14]
[354533093,1740558713922,-1183.224508,0.00041096,14]
[354533094,1740558713931,-1183.224508,0.00041096,14]
[354533095,1740558713942,-1183.224508,0.00041096,14]
[354533096,1740558713952,-1183.224508,0.00041096,14]
[354533097,1740558713961,-1183.224508,0.00041096,14]
[354533098,1740558713971,-1183.224508,0.00041096,14]
[354533099,1740558713981,-1183.224508,0.00041096,14]
[354533100,1740558713991,-1183.224508,0.00041096,14]
[354533101,1740558714001,-1183.224508,0.00041096,14]
[354533102,1740558714010,-1183.224508,0.00041096,14]
[354533103,1740558714019,-1183.224508,0.00041096,14]
[354533104,1740558714028,-1183.224508,0.00041096,14]
[354533105,1740558714039,-1183.224513,0.00041096,14]
[354533106,1740558714050,-1000.0,0.00041123,120]
[354533107,1740558714059,-837.37,0.00041144,2]
[354533108,1740558714069,-500.0,0.00041144,2]
[354533109,1740558714079,-1223.33,0.00041144,2]
[354533110,1740558714090,-500.0,0.00041144,2]
[354533111,1740558714100,-746.59,0.00041144,2]
[354533112,1740558714110,-996.86,0.00041144,2]
[354533113,1740558714120,-649.16,0.00041144,2]
[354533114,1740558714129,-500.0,0.00041144,2]
[354533115,1740558714139,-809.19,0.00041144,2]
[354533116,1740558714148,-500.0,0.00041144,2]
[354533117,1740558714159,-500.0,0.00041144,2]
[354533118,1740558714169,-807.31,0.00041144,2]
[354533119,1740558714179,-551.31,0.00041144,2]
[354533120,1740558714189,-500.0,0.00041144,2]
[354533121,1740558714199,-500.0,0.00041144,2]
[354533122,1740558714209,-1093.48,0.00041144,2]
[354533123,1740558714218,-923.19,0.00041144,2]
[354533124,1740558714228,-937.3,0.00041144,2]
[354533125,1740558714237,-500.0,0.00041144,2]
[354533126,1740558714247,-731.22,0.00041144,2]
[354533127,1740558714256,-836.16,0.00041144,2]
[354533128,1740558714265,-1435.65,0.00041144,2]
[354533129,1740558714275,-1482.81,0.00041144,2]
[354533130,1740558714284,-745.96,0.00041144,2]
[354533131,1740558714298,-1248.13,0.00041144,2]
[354533132,1740558714308,-631.6,0.00041144,2]
[354533133,1740558714318,-691.31,0.00041144,2]
[354533134,1740558714328,-1944.22,0.00041144,2]
[354533135,1740558714340,-934.6,0.00041144,2]
[354533136,1740558714349,-729.0,0.00041144,2]
[354533137,1740558714359,-936.38,0.00041144,2]
[354533138,1740558714370,-683.43,0.00041144,2]
[354533139,1740558714380,-844.03,0.00041144,2]
[354533140,1740558714390,-571.6,0.00041144,2]
[354533141,1740558714399,-876.55,0.00041144,2]
[354533142,1740558714410,-519.21,0.00041144,2]
[354533143,1740558714419,-500.0,0.00041144,2]
[354533144,1740558714428,-884.18,0.00041144,2]
[354533145,1740558714437,-763.01,0.00041144,2]
[354533146,1740558714446,-635.38,0.00041144,2]
[354533147,1740558714455,-500.0,0.00041144,2]
[354533148,1740558714465,-500.0,0.00041144,2]
[354533149,1740558714474,-500.0,0.00041144,2]
[354533150,1740558714483,-5538.76,0.00041144,2]
[354533151,1740558714492,-784.71,0.00041144,2]
[354533152,1740558714501,-751.07,0.00041144,2]
[354533153,1740558714510,-511.78,0.00041144,2]
[354533154,1740558714519,-642.18,0.00041144,2]
[354533155,1740558714529,-500.0,0.00041144,2]
[354533156,1740558714538,-674.65,0.00041144,2]
[354533157,1740558714548,-726.46,0.00041144,2]
[354533158,1740558714557,-745.5,0.00041144,2]
[354533159,1740558714566,-500.0,0.00041144,2]
[354533160,1740558714576,-503.2,0.00041144,2]
[354533161,1740558714585,-500.0,0.00041144,2]
[354533162,1740558714597,-1000.0,0.0004115,120]
[354533163,1740558714606,-1000.0,0.00041178,120]
[354533164,1740558714615,-1000.0,0.00041205,120]
[354533165,1740558714624,-1000.0,0.00041232,120]
[354533166,1740558714634,-1000.0,0.0004126,120]
[354533167,1740558714643,-1109.01925615,0.00041287,120]
[354533168,1740558714653,-500.0,0.00041359,2]
[354533169,1740558714662,-500.0,0.00041359,2]
[354533170,1740558714675,-500.0,0.00041359,2]
[354533171,1740558714685,-785.72,0.00041359,2]
[354533172,1740558714694,-500.0,0.00041359,2]
[354533173,1740558714704,-500.0,0.00041359,2]
[354533174,1740558714714,-500.0,0.00041359,2]
[354533175,1740558714723,-500.0,0.00041359,2]
[354533176,1740558714733,-500.0,0.00041359,2]
[354533177,1740558714742,-500.0,0.00041359,2]
[354533178,1740558714751,-500.0,0.00041359,2]
[354533179,1740558714761,-930.16,0.00041359,2]
[354533180,1740558714770,-500.0,0.00041359,2]
[354533181,1740558714779,-639.3,0.00041359,2]
[354533182,1740558714789,-641.45,0.00041359,2]
[354533183,1740558714798,-506.86261643,0.00041359,2]
[354533184,1740558714807,-500.0,0.00041359,2]
[354533185,1740558714816,-500.0,0.00041359,2]
[354533186,1740558714825,-626.59,0.00041359,2]
[354533187,1740558714835,-500.0,0.00041359,2]
[354533188,1740558714844,-500.0,0.00041359,2]
[354533189,1740558714854,-500.0,0.00041359,2]
[354533190,1740558714864,-500.0,0.00041359,2]
[354533191,1740558714873,-500.0,0.00041359,2]
[354533192,1740558714883,-500.0,0.00041359,2]
[354533193,1740558714892,-500.0,0.00041359,2]
[354533194,1740558714901,-500.0,0.00041359,2]
[354533195,1740558714912,-500.0,0.00041359,2]
[354533196,1740558714921,-656.28,0.00041359,2]
[354533197,1740558714931,-500.0,0.00041359,2]